Cogmind - Beta 9.1 @@@ ROGUE MODE // 2019.11.02 @ 23:39:20 // Halloween2019/Abominations Player: Trione Result: Destroyed by Lesser Abomination with Light EM Pulse Cannon Performance ------------- Evolutions (1) 500 Regions Visited (2) 400 Robots Destroyed (6) 30 Value Destroyed (360) 360 Prototype IDs (0) 0 Alien Tech Used (0) 0 Bonus (200) 200 TOTAL SCORE: 1490 Bonus ------- Pacifist 200 Cogmind --------- Core Integrity 0/400 Matter 159/300 Energy 100/100 System Corruption 13% Temperature Cool (328) Location -9/Materials Parts ------- Power (1) Propulsion (2) Utility (4) Large Storage Unit Large Storage Unit High-capacity Storage Unit Weapon (2) Inventory (24) Ion Engine Cooled Ion Engine Light Treads Light Treads Light Treads Small Storage Unit Large Matter Pod (80) Peak State ------------ Power Ion Engine Propulsion Compact Wheel Compact Wheel Utility Large Storage Unit Large Storage Unit High-capacity Storage Unit Tractor Beam Weapon Light Cannon Rocket Launcher Inventory Ion Engine Cooled Ion Engine Light Treads Light Treads Light Treads Compact Wheel Compact Wheel Compact Wheel Compact Wheel Small Storage Unit Large Matter Pod Grenade Launcher [Rating: 11] Favorites ----------- Power Ion Engine Engine Ion Engine Propulsion Compact Wheel Wheel Compact Wheel Utility Large Storage Unit Device Tractor Beam Storage Large Storage Unit Weapon Small Laser Energy Gun Small Laser Ballistic Gun Light Assault Rifle Ballistic Cannon Light Cannon Launcher Rocket Launcher Build | -11 -10 -9 ------- Run | Scr Mat Mat Slots Evolved 2 | . . 2 Power . | . . . Propulsion . | . . . Utility 2 | . . 2 Weapon . | . . . Parts Attached 20 | 6 2 12 Power 1 | 1 . . Engine 1 | 1 . . Core . | . . . Reactor . | . . . Propulsion 8 | 2 . 6 Treads . | . . . Leg . | . . . Wheel 8 | 2 . 6 Hover . | . . . Flight . | . . . Utility 5 | 1 2 2 Device 1 | . . 1 Storage 4 | 1 2 1 Processor . | . . . Hackware . | . . . Protection . | . . . Artifact . | . . . Weapon 6 | 2 . 4 Energy Gun 2 | 1 . 1 Energy Cannon . | . . . Ballistic Gun 1 | 1 . . Ballistic Cannon 1 | . . 1 Launcher 2 | . . 2 Special Weapon . | . . . Impact Weapon . | . . . Slashing Weapon . | . . . Piercing Weapon . | . . . Special Melee Weapon . | . . . Unidentified Prototypes . | . . . Parts Lost 14 | . . 14 Power 1 | . . 1 Propulsion 6 | . . 6 Utility 1 | . . 1 Weapon 6 | . . 6 Highest Loss Streak 10 | . . 10 Average Slot Usage (%) 78 | . 96 72 Engine 10 | . 14 9 Wheel 22 | . 28 20 Storage 26 | . 24 26 Energy Gun 6 | . 14 3 Ballistic Gun 5 | . 14 3 Ballistic Cannon 2 | . . 3 Launcher 3 | . . 4 Naked Turns . | . . . Heaviest Build 77 | 11 39 77 Greatest Support 32 | 32 32 32 Greatest Overweight (x) 21 | . 1 21 Average Overweight (x) 1 | . . 1 Largest Inventory Capacity 24 | 6 16 24 Average Capacity 16 | 4 13 19 Most Carried 12 | 4 9 12 Average Carried 8 | 2 6 10 Final Capacity 24 | 6 16 24 Final Carried 9 | 4 9 7 Class Distribution -------------------- 66% | Mutant 33% | Hauler-Mutant Dominant Class ---------------- Mutant | -10/Materials Mutant | -9/Materials Resources | -11 -10 -9 ----------- Run | Scr Mat Mat Matter Collected 527 | 216 . 311 Remotely . | . . . Salvage Created 197 | . . 197 Parts 19 | . . 19 Haulers Intercepted . | . . . Recyclers Shooed . | . . . Parts Field Recycled . | . . . Retrieved Matter . | . . . Parts Self-Destructed . | . . . Prevented . | . . . Kills | -11 -10 -9 ------- Run | Scr Mat Mat Combat Hostiles Destroyed 6 | . . 6 Guns 1 | . . 1 AOE 5 | . . 5 Classes Destroyed 1 | . . 1 Abomination 6 | . . 6 Best Kill Streak 3 | . . 3 Combat Bots Only 3 | . . 3 Max Kills in Single Turn 1 | . . 1 Gunslinging . | . . . Exploded 1 | . . 1 Melee . | . . . Uniques/NPCs Destroyed . | . . . Combat | -11 -10 -9 -------- Run | Scr Mat Mat Damage Taken 1972 | . 74 1898 Core 442 | . 39 403 Absorbed by Shields . | . . . Core Remaining (%) 92 | 100 84 . Volleys Fired 28 | . 1 27 Largest 2 | . 2 2 Hottest 80 | . 60 80 Shots Fired 46 | . 2 44 Gun 20 | . 2 18 Cannon 9 | . . 9 Launcher 17 | . . 17 Special . | . . . Kinetic 16 | . 1 15 Thermal 13 | . 1 12 Explosive 17 | . . 17 Electromagnetic . | . . . Robot Hit Streak 17 | . . 17 Robot Miss Streak 2 | . 2 2 Penetration Max . | . . . Secondary Targets . | . . . Shots Hit Robots 32 | . . 32 Core Hits 23 | . . 23 Critical Hits . | . . . Critical Kills . | . . . Critical Parts Destroyed . | . . . Melee Attacks . | . . . Impact . | . . . Slashing . | . . . Piercing . | . . . Sneak Attacks . | . . . Combat Hostiles . | . . . Follow-up Attacks . | . . . Damage Inflicted 1233 | . . 1233 Guns 193 | . . 193 Cannons 123 | . . 123 Explosions 917 | . . 917 Melee . | . . . Ramming . | . . . Kinetic 160 | . . 160 Thermal 156 | . . 156 Explosive 917 | . . 917 Electromagnetic . | . . . Impact . | . . . Slashing . | . . . Piercing . | . . . Highest Corruption 13 | . . 13 Average Corruption 6 | . . 6 Corruption Purged . | . . . Effects 9 | . . 9 Matter Fused 5 | . . 5 Energy Discharges 1 | . . 1 Data Loss (minor) 1 | . . 1 Data Loss (major) 1 | . . 1 Misfires 1 | . . 1 Overload Shots . | . . . Overflow Damage 21 | . . 21 Projectiles . | . . . Explosions 21 | . . 21 Melee . | . . . Knockbacks . | . . . Impact . | . . . Kinetic . | . . . Secondary . | . . . Self-Inflicted Damage 73 | . . 73 Shots 2 | . . 2 Rammed . | . . . Targets Rammed . | . . . Kicked . | . . . Crushed . | . . . Highest Temperature 508 | . 275 508 Average Temperature 170 | . 123 180 Received Heat Transfer 312 | . 39 273 Effects 2 | . . 2 Shutdowns 2 | . . 2 Siege Activations . | . . . Robots Corrupted . | . . . Combat Hostiles . | . . . Parts Fried . | . . . Impact Corruptions . | . . . Robots Melted . | . . . Combat Hostiles . | . . . Parts Melted . | . . . Heat Transferred 72 | . . 72 Parts Sabotaged . | . . . Parts Stolen . | . . . Parts Stripped . | . . . Power Chain Reactions . | . . . Missiles Intercepted . | . . . Alert | -11 -10 -9 ------- Run | Scr Mat Mat Peak Influence 60 | . 60 55 Average Influence 23 | . 17 27 Maximum Alert Level . | . . . Low Security (%) 100 | . . . Level 1 . | . . . Level 2 . | . . . Level 3 . | . . . Level 4 . | . . . Level 5 . | . . . High Security . | . . . Max Security . | . . . Squads Dispatched 6 | . . 6 Investigation 1 | . . 1 Extermination . | . . . Reinforcement 1 | . . 1 Assault 4 | . . 4 Garrison . | . . . Intercept . | . . . Construction Impeded . | . . . Haulers Reinforced . | . . . Stealth | -11 -10 -9 --------- Run | Scr Mat Mat Distress Signals 7 | . 2 5 Communications Jammed . | . . . Distress Signals . | . . . Times Spotted 26 | . 8 18 Peak Tracking Total 8 | . 5 8 Tactical Retreats 3 | . 2 1 Traps | -11 -10 -9 ------- Run | Scr Mat Mat Traps Triggered 2 | . . 2 Indirectly . | . . . Trap Hack Attempts . | . . . Triggered . | . . . Disarmed . | . . . Reprogrammed . | . . . Reused . | . . . Traps Extracted . | . . . Installed . | . . . Triggered . | . . . Machines | -11 -10 -9 ---------- Run | Scr Mat Mat Machines Disabled . | . . . Max in Single Turn . | . . . Machines Sabotaged . | . . . Garrisons Compromised . | . . . Overloaded Fab Kills . | . . . Fab Network Shutdowns . | . . . Hacking | -11 -10 -9 --------- Run | Scr Mat Mat Machines Accessed . | . . . Terminals . | . . . Fabricators . | . . . Repair Stations . | . . . Recycling Units . | . . . Scanalyzers . | . . . Garrison Access . | . . . Total Hacks . | . . . Successful . | . . . Failed . | . . . Catastrophic . | . . . Database Lockouts . | . . . Manual . | . . . Terminals . | . . . Fabricators . | . . . Repair Stations . | . . . Recycling Units . | . . . Scanalyzers . | . . . Garrison Access . | . . . Terminal Hacks . | . . . Fabricator Hacks . | . . . Repair Station Hacks . | . . . Recycling Unit Hacks . | . . . Scanalyzer . | . . . Garrison Access Hacks . | . . . Unauthorized Hacks . | . . . Terminals . | . . . Fabricators . | . . . Repair Stations . | . . . Recycling Units . | . . . Scanalyzers . | . . . Garrison Access . | . . . Data Cores Recovered . | . . . Used . | . . . Hacking Detections . | . . . Full Trace Events . | . . . Feedback Events . | . . . Feedback Blocked . | . . . Robot Schematics Acquired . | . . . Robots Built . | . . . Matter . | . . . Time . | . . . Total Robot Build Rating . | . . . Part Schematics Acquired . | . . . Parts Built . | . . . Matter . | . . . Time . | . . . Total Part Build Rating . | . . . Parts Repaired . | . . . Time . | . . . Parts Recycled . | . . . Recycled Matter . | . . . Retrieved Matter . | . . . Retrieved Components . | . . . Parts Scanalyzed . | . . . Part Schematics Acquired . | . . . Parts Damaged . | . . . Bothacking | -11 -10 -9 ------------ Run | Scr Mat Mat Used RIF Installer . | . . . Robots Hacked . | . . . Non-combat . | . . . Combat . | . . . Robot Hacks Applied . | . . . Relay Couplers Released . | . . . Robots Rewired . | . . . Allies Hacked . | . . . Hacks Repelled . | . . . Allies | -11 -10 -9 -------- Run | Scr Mat Mat Total Allies . | . . . Largest Group . | . . . Highest-Rated Group . | . . . Highest-Rated Ally . | . . . Total Orders . | . . . Ally Attacks . | . . . Total Damage . | . . . Kills . | . . . Allies Corrupted . | . . . Allies Melted . | . . . Intel | -11 -10 -9 ------- Run | Scr Mat Mat Robot Analysis Total . | . . . Derelict Logs Recovered . | . . . Drone Launches . | . . . Drone Recoveries . | . . . Exploration | -11 -10 -9 ------------- Run | Scr Mat Mat Turns Passed 742 | 61 162 519 Spaces Moved 533 | 49 143 341 Core 2 | 1 . 1 Treads . | . . . Legs . | . . . Wheels 531 | 48 143 340 Hover . | . . . Flight . | . . . Fastest Speed 50 | 50 100 110 Average Speed 113 | 98 107 117 Slowest Speed 1100 | 100 110 1100 Overloaded Moves . | . . . Propulsion Burnouts . | . . . Robots Hopped . | . . . Cave-ins Triggered . | . . . Exploration Rate (%) 27 | 3 33 46 Regions Visited 2 Branch Regions . Pre-discovered Areas . | . . . Known Exits Taken . | . . . Unknown Exits Taken 2 | 1 1 . Scrap Searched . | . . . Spaces Dug . | . . . Terrain Destroyed 84 | . . 84 Melee . | . . . Projectile . | . . . AOE 84 | . . 84 Actions | -11 -10 -9 --------- Run | Scr Mat Mat Total 614 | 58 149 407 Wait 23 | . . 23 Move 531 | 48 142 341 Hop . | . . . Pick Up 12 | 4 4 4 Fast Attach 13 | 6 1 6 Attach 6 | . . 6 Detach . | . . . Swap 1 | . 1 . Drop . | . . . Fire 28 | . 1 27 Melee . | . . . Ram . | . . . Kick . | . . . Crush . | . . . Escape Stasis . | . . . Rewire . | . . . Trap . | . . . Miscellaneous . | . . . Route ------- -11/Scrapyard -10/Materials -9/Materials History --------- Turn | Location | Event 27 | -11/Scrapyard | Discovered new exit (range 16) 62 | -11/Scrapyard | Entered Materials 207 | -10/Materials | Discovered new exit (range 16) 224 | -10/Materials | Entered another Materials area 224 | -9/Materials | Evolved 2 slots: Utility x2 318 | -9/Materials | Build established: Mutant 417 | -9/Materials | Lost 3 parts (3w) 689 | -9/Materials | Core integrity fell below 50% 700 | -9/Materials | System corruption reached 10% 715 | -9/Materials | Core integrity fell below 20% 722 | -9/Materials | Discovered new exit (range 7) 729 | -9/Materials | Lost 10 parts (1p5n1u3w) 743 | -9/Materials | Destroyed by Lesser Abomination with Light EM Pulse Cannon Last Messages --------------- 00698_ Engulfed by violent ripples tearing at the fabric of space. 00698_ Com. Wheel destroyed. 00699_ Acquired 6 matter. 00700_ Zapped by an electromagnetic arc from EM Anomaly. 00701_ Unstable Anomaly suddenly flashes brightly. 00701_ Engulfed by violent ripples tearing at the fabric of space. 00703_ Unstable Anomaly suddenly flashes brightly. 00706_ Warp Anomaly forced to warp away. 00707_ Acquired 43 matter. 00709_ Unstable Anomaly suddenly flashes brightly. 00709_ Lesser Abomination feeds off Hungry Anomaly, taking Assault Rifle. 00714_ 12 Matter blinks away. 00714_ ALERT: Dispatching additional forces to engage threats. 00722_ EXIT=FOUND (Blocked) 00736_ Com. Wheel destroyed. 00740_ Unstable Anomaly suddenly flashes brightly. 00740_ Engulfed by violent ripples tearing at the fabric of space. 00741_ System corrupted: Matter fused (-8). 00741_ Unstable Anomaly suddenly flashes brightly. 00741_ Zapped by an electromagnetic arc from EM Anomaly. Map ----- +----------------------------------------------------+ | ????????????????????????????????# ??????? %????# | | ????????????????????????????????# ??????? #???# | | ##??????????????????????????????# ??????? #??? | | #??????????????????????????????# ??????"" #??"" | | #??????????????????????????????# ??#? """ #???" | | #???????????????????###+###????# ### """ #???? | | #???????????????????# ####? # #???? | | #???????????????????# ?% ?? ## """ #?? | | #????###########????# T ?? ? ## """ ##### | | #????# #????#% ???? ?? ## """ # # | | #????# % #????# ##??# ? ## # | | ##????# / #?????# #"##############/ #" | | ####### #?????# | | # #?????# | | + % #????## | | # #??#### n#############""" " | | ####### #??#" #?? # " % | | #####?##/########??#"" n #????######### | | """ ??# #" ????? # #????????????# | | ""R" #?# ## ??? #"" A ##???????????# | | "" " #?# ## """ # "#???????????# % | | #?# ## """ #"" n "#???????????# | | #?# ## #" "#???????????# | | #?# ## """ #""# #"#???????????# | | ######?# ## """ ## # # #???????????########## | | ???????# ##! """ ?# # @#"#????????????????????? | | ## #?? ??# # A #" %???????????????????? | | ## #####+######"# #" ?????????????????? | | ## n " ???????????????? | | """"""#% % " ?????????##### | | "# % " #????????# | | "Y" ## " " [ #????????# | | """ "## """" # % #????????# | | ? " # ###= """"" # % #????????# | | #+######+### """"" # #????????# | | #? # "" ##########????????# ! | | #? # ##????????????????##### | | ## # ##????????????????????# | | % # # A "#????????????????????# | | # ! # ! T#???????????????????## | | + +% "#??????????????????# # | | # = # "#??????????????????### | | # ? "#???????????????????#" | | #??? ????## ######## ""????????????????????## | | #??????????????????? ????????????????????????# | | #?????????????????????????????????????????????# | | #?????????????????????????????????????????????? | | #?????????????????????????????????????????????? | | #?????????????????????????????????????????????? | | #?????????????????????????????????????????????? | +----------------------------------------------------+ Best States ------------- Heat Dissipation 28 Energy Generation 10 Energy Capacity 250 Matter Stores 300 Matter Capacity 300 Sight Range 16 Terrain Scan Density 10 Evasion (%) 40 Item Schematics ----------------- None Robot Schematics ------------------ None Fabricated ------------ Nothing Alien Tech Used ----------------- None Achievements -------------- None Challenges ------------ None Game ------ Seed RagnarokAutogunDriver Manual? 0 Play Time 00:09:20 Cumulative 807.6 hours Start 2019.11.02 @ 23:31:03 End 2019.11.02 @ 23:39:20 Sessions 1 Manual Loads 0 Difficulty Rogue Special Mode Halloween2019/Abominations Game No. 305 Rogue 305 Adventurer 0 Explorer 0 Win Type - Total 20 Types 10/1/7/0/0/0/2 Lore% 95 Gallery% 94 Achievement% 79 Wizard Run 0 Options --------- ASCII 0 Keyboard 0 Movement Vi Keybinds 0 Fullscreen 0 Font 12/Crisp Map View 76x50 Tactical HUD 1 Map Filters NONE Filters NONE Steam X RUN: c75203f7-2cea-47ba-b64a-a1a811fdb129